bitfinex-derivatives/quotes_SOLF0:USTF0_20220109
["timestamp","ask_amount","ask_price","bid_price","bid_amount"]
[1641712106596,4.0,141.97,141.88,7.04448593]
[1641712106794,9.63539335,141.96,141.89,32.0228]
[1641712106995,4.0,141.95,141.86,8.12059038]
[1641712107198,9.63539335,141.96,141.89,2.67945743]
[1641712107396,2.29869038,141.96,141.89,2.67945743]
[1641712107596,6.29869038,141.96,141.89,2.67945743]
[1641712108496,33.96348038,141.96,141.89,2.67945743]
[1641712108695,2.29869038,141.95,141.87,27.66479]
[1641712110302,6.29869038,141.95,141.87,27.66479]
[1641712110501,31.66479,141.9,141.83,1.76]
[1641712110700,33.83679,141.9,141.79,32.8594]
[1641712110900,4.0,141.89,141.79,32.8594]
[1641712111103,5.63856502,141.89,141.79,32.8594]
[1641712111300,4.0,141.88,141.79,32.8594]
[1641712112903,4.0,141.88,141.8,30.33416943]
[1641712113103,4.0,141.85,141.8,2.66937943]
[1641712113303,4.0,141.84,141.8,2.66937943]
[1641712113503,4.0,141.84,141.74,33.8277]
[1641712114705,31.66479,141.84,141.75,30.32844057]
[1641712115708,31.66479,141.84,141.76,2.66365057]
[1641712116009,4.0,141.82,141.76,2.66365057]
[1641712116207,4.0,141.8,141.76,2.66365057]
[1641712116607,4.0,141.8,141.74,33.8277]
[1641712116806,31.66479,141.79,141.74,33.8277]
[1641712117007,37.95379,141.79,141.7,27.66479]
[1641712117807,37.95379,141.79,141.71,2.65985285]
[1641712118206,33.95379,141.79,141.71,2.65985285]
[1641712118806,33.95379,141.79,141.7,27.66479]
[1641712118807,4.0,141.77,141.7,27.66479]
[1641712119213,9.64281323,141.78,141.7,27.66479]
[1641712120509,4.0,141.77,141.7,27.66479]
[1641712120811,9.64281323,141.78,141.7,27.66479]
[1641712121613,4.0,141.77,141.7,27.66479]
[1641712121812,9.64281323,141.78,141.7,27.66479]
[1641712122114,5.6431677,141.77,141.7,27.66479]
[1641712123713,12.1241677,141.77,141.7,27.66479]
[1641712125817,4.0,141.75,141.7,27.66479]
[1641712126017,4.0,141.74,141.65,33.7224]
[1641712126217,4.0,141.73,141.64,34.7858]
[1641712126418,5.64548425,141.71,141.64,34.7858]
[1641712126617,11.50148425,141.71,141.64,34.7858]
[1641712126817,4.0,141.67,141.59,35.3471]
[1641712127020,31.66479,141.66,141.59,60.20519]
[1641712127220,27.66479,141.66,141.59,60.20519]
[1641712127620,27.66479,141.66,141.59,27.66479]
[1641712128020,27.66479,141.66,141.59,31.66479]
[1641712128220,6.77507475,141.7,141.59,31.66479]
[1641712128520,4.0,141.71,141.59,34.22479]
[1641712128821,9.64585791,141.7,141.59,34.22479]
[1641712129023,27.66479,141.68,141.59,34.22479]
[1641712129421,5.6469989,141.67,141.59,27.66479]
[1641712129618,12.4209989,141.67,141.59,27.66479]
[1641712129820,16.4209989,141.67,141.59,27.66479]
[1641712130018,4.0,141.66,141.59,27.66479]
[1641712130220,5.64774642,141.65,141.59,27.66479]
[1641712130421,9.64774642,141.65,141.59,27.66479]
[1641712130620,5.64774642,141.65,141.59,27.66479]
[1641712130819,27.66479,141.68,141.59,27.66479]
[1641712131023,27.66479,141.68,141.59,35.68579]
[1641712132523,27.66479,141.68,141.6,4.0]
[1641712132722,4.0,141.72,141.6,4.0]
[1641712132923,4.0,141.72,141.59,42.74469658]
[1641712133121,4.0,141.71,141.63,27.66479]
[1641712133322,4.0,141.71,141.63,34.61979]
[1641712133524,4.0,141.71,141.63,6.955]
[1641712133724,4.0,141.7,141.63,6.955]
[1641712134325,4.0,141.7,141.59,35.68579]
[1641712134627,4.0,141.72,141.59,35.68579]
[1641712135027,4.0,141.72,141.63,27.66479]
[1641712135426,4.0,141.71,141.63,27.66479]
[1641712135627,35.79323603,141.73,141.63,27.66479]
[1641712135827,4.0,141.7,141.63,27.66479]
[1641712137231,4.0,141.67,141.63,27.66479]
[1641712137432,12.226,141.67,141.63,27.66479]
[1641712137932,12.226,141.67,141.59,27.66479]
[1641712138131,8.226,141.67,141.59,27.66479]
[1641712139232,8.226,141.67,141.59,55.32958]
[1641712139432,4.0,141.68,141.6,2.66129914]
[1641712139635,12.70915134,141.68,141.6,2.66129914]
[1641712139833,4.0,141.61,141.53,5.6523784]
[1641712140033,5.64984423,141.6,141.52,34.4774]
[1641712140436,6.402,141.61,141.52,34.4774]
[1641712140638,10.402,141.61,141.52,34.4774]
[1641712141034,6.402,141.61,141.52,34.4774]
[1641712141235,6.402,141.61,141.58,27.66479]
[1641712141434,31.66479,141.66,141.58,27.66479]
[1641712141634,9.64806151,141.65,141.56,27.66479]
[1641712141836,4.0,141.64,141.56,27.66479]
[1641712142135,4.0,141.63,141.56,27.66479]
[1641712143535,31.66479,141.63,141.56,27.66479]
[1641712144637,14.66106151,141.65,141.56,27.66479]
[1641712144638,4.0,141.64,141.56,27.66479]
[1641712145237,5.64806151,141.65,141.56,27.66479]
[1641712145440,34.2188,141.67,141.56,34.08379]
[1641712145639,15.19217479,141.69,141.62,27.66479]
[1641712145839,15.19217479,141.69,141.62,35.45279]
[1641712146339,19.19217479,141.69,141.62,35.45279]
[1641712146538,4.0,141.68,141.62,35.45279]
[1641712146739,13.06,141.68,141.62,27.66479]
[1641712147139,4.0,141.67,141.62,27.66479]
[1641712149340,13.06,141.68,141.62,27.66479]
[1641712149540,9.06,141.68,141.62,27.66479]
[1641712150141,4.0,141.67,141.62,27.66479]
[1641712150544,13.06,141.68,141.62,27.66479]
[1641712150844,13.06,141.68,141.58,35.0942]
[1641712151846,4.0,141.67,141.58,35.0942]
[1641712152044,4.0,141.67,141.6,27.66479]
[1641712152245,9.06,141.68,141.6,27.66479]
[1641712152544,4.0,141.68,141.6,27.66479]
[1641712154549,9.64712416,141.67,141.6,27.66479]
[1641712154749,17.28612416,141.67,141.6,27.66479]
[1641712155250,11.06314451,141.66,141.58,27.66479]
[1641712155450,4.0,141.64,141.58,27.66479]
[1641712155652,12.322,141.64,141.57,32.484]
[1641712156051,4.0,141.63,141.57,32.484]
[1641712156451,41.63514173,141.64,141.57,32.484]
[1641712157252,45.63514173,141.64,141.57,32.484]
[1641712157455,41.63514173,141.64,141.57,32.484]
[1641712157652,45.63514173,141.64,141.57,32.484]
[1641712157952,13.97035173,141.64,141.57,32.484]
[1641712158152,4.0,141.63,141.57,32.484]
[1641712158852,45.63514173,141.64,141.57,32.484]
[1641712159753,41.63514173,141.64,141.57,32.484]
[1641712160355,45.63514173,141.64,141.57,32.484]
[1641712162655,41.63514173,141.64,141.57,32.484]
[1641712162855,45.63514173,141.64,141.58,10.48025862]
[1641712163056,4.0,141.63,141.58,10.48025862]
[1641712163858,45.63514173,141.64,141.58,10.48025862]
[1641712165863,4.0,141.63,141.58,10.48025862]
[1641712166561,45.63514173,141.64,141.58,10.48025862]
[1641712166962,5.64885174,141.63,141.58,10.48025862]
[1641712167162,9.64885174,141.63,141.58,10.48025862]
[1641712167362,5.64885174,141.63,141.58,10.48025862]
[1641712169463,4.0,141.61,141.58,10.48025862]
[1641712169663,5.65028073,141.59,141.58,10.48025862]
[1641712170067,5.65028073,141.59,141.55,47.52958286]
[1641712170265,5.65028073,141.59,141.55,15.54448286]
[1641712170966,5.65028073,141.59,141.53,32.6657]
[1641712174269,5.65028073,141.59,141.53,48.2309017]
[1641712174869,5.65028073,141.59,141.53,32.6657]
[1641712177172,9.65028073,141.59,141.53,32.6657]
[1641712179075,9.65064566,141.58,141.53,32.6657]
[1641712179276,18.04664566,141.58,141.53,32.6657]
[1641712180377,18.04664566,141.58,141.54,2.68411459]
[1641712183983,5.65100136,141.57,141.54,2.68411459]
[1641712190593,5.65100136,141.57,141.54,13.17760017]
[1641712193593,8.13451098,141.62,141.54,13.17760017]
[1641712193793,8.13451098,141.62,141.54,18.97260017]
[1641712194494,8.13451098,141.62,141.54,22.97260017]
[1641712195095,8.13451098,141.62,141.55,2.68411459]
[1641712195295,8.13451098,141.62,141.57,27.66479]
[1641712196296,8.13451098,141.62,141.58,2.68411459]
[1641712203702,4.0,141.61,141.58,2.68411459]
[1641712203904,5.65003212,141.6,141.56,10.49348558]
[1641712204105,5.6506036,141.58,141.56,10.49348558]
[1641712204306,14.9336036,141.58,141.56,10.49348558]
[1641712204707,14.9336036,141.58,141.54,10.49348558]
[1641712213721,20.58443262,141.58,141.54,10.49348558]
[1641712214124,9.283,141.58,141.54,10.49348558]
[1641712214324,15.72244963,141.61,141.54,10.49348558]
[1641712215424,8.943,141.61,141.54,10.49348558]
[1641712215624,34.6748,141.62,141.56,27.66479]
[1641712216325,41.50836169,141.63,141.56,27.66479]
[1641712216526,34.44347067,141.63,141.56,27.66479]
[1641712216725,6.77868067,141.63,141.56,27.66479]
[1641712218628,6.77868067,141.63,141.56,38.15827558]
[1641712219028,4.0,141.62,141.56,38.15827558]
[1641712219229,13.23,141.62,141.56,38.15827558]
[1641712219631,5.64975839,141.6,141.56,38.15827558]
[1641712220230,5.64975839,141.6,141.53,32.6657]
[1641712221229,5.64975839,141.6,141.54,10.49195379]
[1641712221429,5.65013285,141.59,141.54,10.49195379]
[1641712221630,14.36713285,141.59,141.54,10.49195379]
[1641712223230,8.717,141.59,141.54,10.49195379]
[1641712225936,36.38179,141.59,141.54,10.49195379]
[1641712226337,42.03203476,141.59,141.54,10.49195379]
[1641712226843,42.03203476,141.59,141.53,10.49195379]
[1641712227142,4.0,141.55,141.53,10.49195379]
[1641712227343,4.0,141.54,141.47,59.21999669]
[1641712227542,9.65263065,141.53,141.47,59.21999669]
[1641712227744,4.0,141.52,141.44,92.44609669]
[1641712227943,27.66479,141.5,141.44,92.44609669]
[1641712229042,27.66479,141.5,141.44,33.2261]
[1641712231943,27.66479,141.5,141.41,27.66479]
[1641712232145,27.66479,141.5,141.42,35.412]
[1641712232746,62.05289,141.5,141.42,35.412]
[1641712234246,66.05289,141.5,141.42,35.412]
[1641712234448,62.05289,141.5,141.42,35.412]
[1641712234648,34.3881,141.5,141.42,35.412]
[1641712235049,5.65364339,141.51,141.42,43.474]
[1641712235248,7.06913615,141.54,141.42,43.474]
[1641712235449,42.37693615,141.54,141.42,43.474]
[1641712235849,42.37693615,141.54,141.46,27.66479]
[1641712238254,42.37693615,141.54,141.42,35.412]
[1641712238455,4.0,141.53,141.42,35.412]
[1641712238855,9.65319157,141.52,141.42,35.412]
[1641712239757,5.65319157,141.52,141.42,35.412]
[1641712239956,33.31798157,141.52,141.42,35.412]
[1641712241460,37.31798157,141.52,141.42,35.412]
[1641712241859,33.31798157,141.52,141.42,35.412]
[1641712244062,37.31798157,141.52,141.42,35.412]
[1641712244663,5.65409143,141.5,141.43,2.67093755]
[1641712244867,19.20747707,141.5,141.43,2.67093755]
[1641712245163,5.65493409,141.47,141.43,2.67093755]
[1641712245363,11.41993409,141.47,141.43,2.67093755]
[1641712245565,11.41993409,141.47,141.42,35.412]
[1641712245964,27.66479,141.46,141.42,35.412]
[1641712246168,27.66479,141.46,141.39,35.1313]
[1641712246364,27.66479,141.46,141.39,33.9116]
[1641712247064,33.3202384,141.46,141.39,33.9116]
[1641712247768,9.65630687,141.44,141.4,2.67104098]
[1641712247966,27.66479,141.43,141.4,2.67104098]
[1641712248268,5.65707615,141.42,141.4,2.67104098]
[1641712249368,5.65707615,141.42,141.39,2.67104098]
[1641712250368,5.65707615,141.42,141.34,30.33583098]
[1641712250568,5.65707615,141.42,141.34,40.78876065]
[1641712250969,27.66479,141.43,141.34,40.78876065]
[1641712251370,27.66479,141.43,141.35,2.67104098]
[1641712251969,15.67913696,141.44,141.35,2.67104098]
[1641712253169,15.67913696,141.44,141.35,13.12397065]
[1641712253371,8.605,141.44,141.35,13.12397065]
[1641712253571,40.71207422,141.45,141.35,13.12397065]
[1641712254772,40.71207422,141.45,141.35,2.67104098]
[1641712256671,40.71207422,141.45,141.35,19.43297065]
[1641712257173,34.45038118,141.48,141.36,5.65930618]
[1641712257374,14.97731053,141.49,141.42,4.0]
[1641712257576,14.97731053,141.49,141.42,10.437]
[1641712258175,14.97731053,141.49,141.44,27.66479]
[1641712259079,42.07153437,141.52,141.44,27.66479]
[1641712259277,2.31762506,141.52,141.44,27.66479]
[1641712260378,2.31762506,141.52,141.45,2.67104098]
[1641712263783,2.31762506,141.52,141.44,2.67104098]
[1641712263983,15.54862506,141.52,141.44,2.67104098]
[1641712264383,13.231,141.52,141.44,2.67104098]
[1641712264585,18.88404047,141.52,141.44,2.67104098]
[1641712266387,24.53723597,141.52,141.44,2.67104098]
[1641712266587,20.53723597,141.52,141.45,4.0]
[1641712266787,14.97731053,141.54,141.46,4.0]
[1641712267188,14.97731053,141.54,141.47,4.0]
[1641712267588,6.78111264,141.57,141.47,6.67104098]
[1641712268088,6.78111264,141.57,141.47,2.67104098]
[1641712268388,6.78111264,141.57,141.49,27.66479]
[1641712269591,6.78111264,141.57,141.5,2.67104098]
[1641712271595,6.78111264,141.57,141.49,30.33583098]
[1641712272400,12.60411264,141.57,141.5,2.67104098]
[1641712273399,5.65192466,141.55,141.5,2.67104098]
[1641712274402,9.65192466,141.55,141.47,2.67104098]
[1641712275200,27.66479,141.54,141.47,2.67104098]
[1641712275401,35.83679,141.54,141.47,2.67104098]
[1641712276702,41.48924569,141.54,141.47,2.67104098]
[1641712278003,4.0,141.53,141.47,2.67104098]
[1641712278203,5.6532727,141.52,141.47,2.67104098]
[1641712278402,5.65400282,141.5,141.47,2.67104098]
[1641712278607,13.75000282,141.5,141.42,33.845]
[1641712278902,5.65492551,141.47,141.37,11.06988582]
[1641712279103,11.36092551,141.47,141.37,11.06988582]
[1641712279303,11.36092551,141.47,141.4,27.66479]
[1641712280803,11.36092551,141.47,141.41,2.68170199]
[1641712282903,11.36092551,141.47,141.39,13.16354225]
[1641712284808,1.766,141.49,141.39,17.16354225]
[1641712285008,6.78452636,141.5,141.39,23.36654225]
[1641712285611,6.78452636,141.5,141.4,2.68170199]
[1641712286312,1.766,141.52,141.41,4.0]
[1641712286510,89.11576646,141.53,141.4,2.68170199]
[1641712286711,8.739,141.52,141.4,6.68170199]
[1641712286913,8.739,141.52,141.4,2.68170199]
[1641712287513,5.65343624,141.51,141.42,27.66479]
[1641712288315,5.65343624,141.51,141.43,2.68170199]
[1641712293022,39.40372787,141.53,141.43,6.68170199]
[1641712293222,14.97731053,141.55,141.43,13.74859009]
[1641712293625,14.97731053,141.55,141.45,27.66479]
[1641712293824,14.97731053,141.55,141.45,31.66479]
[1641712294024,66.58176739,141.56,141.45,31.66479]
[1641712294227,66.58176739,141.56,141.45,40.25179]
[1641712294427,66.58176739,141.56,141.46,32.8898]
[1641712294926,66.58176739,141.56,141.46,35.57150199]
[1641712295727,66.58176739,141.56,141.47,2.68170199]
[1641712301235,70.58176739,141.56,141.47,2.68170199]
[1641712301737,5.65235242,141.54,141.47,2.68170199]
[1641712302936,4.0,141.53,141.47,2.68170199]
[1641712303137,5.65313977,141.52,141.47,2.68170199]
[1641712303336,13.86913977,141.52,141.47,2.68170199]
[1641712303635,13.86913977,141.52,141.46,32.8898]
[1641712305437,13.86913977,141.52,141.47,2.68286826]
[1641712305638,8.216,141.52,141.47,2.68286826]
[1641712307244,13.66200769,141.55,141.47,2.68286826]
[1641712307444,5.65200769,141.55,141.47,2.68286826]
[1641712308147,5.65200769,141.55,141.47,30.34765826]
[1641712308946,5.65200769,141.55,141.48,2.68286826]
[1641712310447,5.65200769,141.55,141.47,27.66479]
[1641712310649,2.31545339,141.54,141.47,27.66479]
[1641712313149,2.31545339,141.54,141.48,2.68384467]
[1641712318057,39.75390931,141.58,141.52,4.0]
[1641712318258,2.31885053,141.57,141.52,8.259]
[1641712318655,2.31885053,141.57,141.52,35.92379]
[1641712318857,2.31885053,141.57,141.52,8.259]
[1641712319357,34.44443774,141.61,141.52,8.259]
[1641712320362,9.51714106,141.62,141.52,12.259]
[1641712320560,67.41869931,141.63,141.52,12.259]
[1641712320765,67.41869931,141.63,141.53,27.66479]
[1641712321464,67.41869931,141.63,141.54,33.4126]
[1641712321663,37.18336005,141.63,141.54,33.4126]
[1641712321865,5.64914369,141.62,141.53,38.17064279]
[1641712322063,5.64914369,141.62,141.53,71.21744279]
[1641712322264,25.7176685,141.62,141.53,71.21744279]
[1641712322463,25.7176685,141.62,141.53,60.71159]
[1641712322664,35.23623855,141.62,141.53,60.71159]
[1641712322864,15.16771374,141.62,141.53,60.71159]
[1641712324764,20.06847087,141.61,141.53,60.71159]
[1641712326268,5.64974803,141.6,141.53,27.66479]
[1641712326869,7.0651406,141.62,141.53,27.66479]
[1641712327069,7.0651406,141.62,141.53,34.59379]
[1641712327368,9.50505351,141.62,141.53,34.59379]
[1641712327770,9.50505351,141.62,141.55,4.0]
[1641712328369,33.3133966,141.63,141.55,4.0]
[1641712329071,27.66479,141.63,141.56,27.66479]
[1641712329269,27.66479,141.63,141.56,33.65479]
[1641712329871,5.64895859,141.62,141.56,33.65479]
[1641712332077,5.64895859,141.62,141.57,4.0]
[1641712332275,34.44174364,141.66,141.56,37.65479]
[1641712332475,34.44174364,141.66,141.6,4.0]
[1641712332675,27.66479,141.66,141.6,11.112]
[1641712332875,27.66479,141.66,141.6,7.112]
[1641712333275,27.66479,141.66,141.61,27.66479]
[1641712333976,27.66479,141.69,141.63,4.0]
[1641712334176,27.66479,141.69,141.63,11.506]
[1641712334378,27.66479,141.69,141.63,7.506]
[1641712336279,31.66479,141.69,141.63,7.506]
[1641712336481,4.0,141.68,141.61,55.32958]
[1641712336680,39.10079,141.69,141.61,55.32958]
[1641712336879,5.64680506,141.68,141.61,55.32958]
[1641712338882,35.10079,141.69,141.61,55.32958]
[1641712339080,27.66479,141.69,141.61,55.32958]
[1641712343987,31.66479,141.69,141.61,55.32958]
[1641712344188,4.0,141.67,141.61,55.32958]
[1641712344987,4.0,141.67,141.61,27.66479]
[1641712345187,4.0,141.64,141.61,27.66479]
[1641712345388,10.365,141.64,141.58,27.66479]
[1641712345788,6.365,141.64,141.58,27.66479]
[1641712346389,5.64865462,141.63,141.58,27.66479]
[1641712348395,6.365,141.64,141.58,27.66479]
[1641712348595,5.64744483,141.66,141.58,34.92779]
[1641712348796,20.60050353,141.66,141.58,34.92779]
[1641712350397,5.64744483,141.66,141.58,34.92779]
[1641712351098,9.64744483,141.66,141.58,34.92779]
[1641712351299,24.60050353,141.66,141.58,27.66479]
[1641712352797,5.64810268,141.65,141.58,27.66479]
[1641712353000,5.64889844,141.63,141.58,27.66479]
[1641712358209,2.3137442,141.62,141.58,27.66479]
[1641712362714,11.96303113,141.62,141.56,27.66479]
[1641712362915,11.96303113,141.62,141.52,32.8583]
[1641712363118,5.65002794,141.6,141.52,32.8583]
[1641712363319,4.0,141.56,141.47,4.0]
[1641712363516,15.76855674,141.56,141.47,33.6122]
[1641712363716,15.76855674,141.56,141.48,27.66479]
[1641712363917,11.76855674,141.56,141.48,27.66479]
[1641712365018,2.3137442,141.55,141.49,2.68537899]
[1641712366019,5.65155674,141.56,141.49,2.68537899]
[1641712367822,5.65155674,141.56,141.48,27.66479]
[1641712369724,14.9530587,141.59,141.52,27.66479]
[1641712369926,14.9530587,141.59,141.52,34.44179]
[1641712370326,34.4444747,141.6,141.52,34.44179]
[1641712371129,4.0,141.59,141.52,34.44179]
[1641712371428,6.30862423,141.59,141.52,34.44179]
[1641712371627,5.65064867,141.58,141.52,34.44179]
[1641712372327,2.30862423,141.59,141.52,34.44179]
[1641712372528,27.66479,141.6,141.52,34.44179]
[1641712372726,42.6178487,141.6,141.52,34.44179]
[1641712373529,2.30902433,141.59,141.52,6.777]
[1641712373731,7.95925564,141.59,141.52,6.777]
[1641712373929,7.95925564,141.59,141.51,27.66479]
[1641712374328,5.65023131,141.59,141.51,27.66479]
[1641712375228,5.65023131,141.59,141.52,2.67854381]
[1641712375430,5.65023131,141.59,141.52,11.08154381]
[1641712375931,23.08693567,141.63,141.54,27.66479]
[1641712376530,14.9530587,141.63,141.54,27.66479]
[1641712377431,2.30903325,141.64,141.55,2.67829792]
[1641712377632,2.30903325,141.64,141.55,9.51529792]
[1641712377831,2.30903325,141.64,141.58,27.66479]
[1641712378035,2.30903325,141.64,141.58,36.28879]
[1641712379535,6.77730511,141.65,141.58,36.28879]
[1641712380435,2.30939806,141.64,141.58,36.28879]
[1641712382239,2.30939806,141.64,141.58,8.624]
[1641712382439,2.30939806,141.64,141.55,6.837]
[1641712382640,2.30939806,141.64,141.53,34.6852]
[1641712382840,2.30939806,141.64,141.58,27.66479]
[1641712387850,5.6477409,141.65,141.58,27.66479]
[1641712388250,5.64754848,141.66,141.58,27.66479]
[1641712388851,2.30857863,141.65,141.58,27.66479]
[1641712389252,2.30857863,141.65,141.58,31.66479]
[1641712389450,2.30857863,141.65,141.58,27.66479]
[1641712390352,2.30857863,141.65,141.59,4.0]
[1641712390554,2.30857863,141.67,141.59,4.0]
[1641712391053,2.30857863,141.67,141.63,27.66479]
[1641712391252,2.30857863,141.67,141.63,33.49979]
[1641712392554,4.0,141.68,141.61,32.1118]
[1641712392755,5.64741608,141.66,141.58,27.66479]
[1641712393554,8.904,141.67,141.58,27.66479]
[1641712393555,33.6747,141.68,141.58,27.66479]
[1641712393956,48.6277587,141.68,141.58,27.66479]
[1641712394956,33.6747,141.68,141.58,27.66479]
[1641712395157,33.6747,141.68,141.61,27.66479]
[1641712395758,2.30556892,141.67,141.61,27.66479]
[1641712397360,2.30556892,141.67,141.57,38.6892]
[1641712397560,2.30556892,141.67,141.57,34.6892]
[1641712397960,2.30556892,141.67,141.61,27.66479]
[1641712403465,7.9526786,141.67,141.61,27.66479]
[1641712403866,11.9526786,141.67,141.61,27.66479]
[1641712404768,17.25862762,141.66,141.61,27.66479]
[1641712405567,14.9530587,141.65,141.61,27.66479]
[1641712408171,17.25862762,141.65,141.61,27.66479]
[1641712410774,25.18162762,141.65,141.61,27.66479]
[1641712411475,2.30556892,141.64,141.61,27.66479]
[1641712417879,2.30556892,141.66,141.61,27.66479]
[1641712418680,14.9530587,141.66,141.61,27.66479]
[1641712420483,14.9530587,141.66,141.61,55.32958]
[1641712421582,17.25862762,141.68,141.62,2.68733592]
[1641712421882,5.64697701,141.67,141.62,2.68733592]
[1641712422281,5.64697701,141.67,141.61,55.32958]
[1641712422481,20.60003571,141.67,141.61,55.32958]
[1641712423383,17.25862762,141.66,141.61,55.32958]
[1641712426286,26.28162762,141.66,141.61,55.32958]
[1641712426686,5.64775784,141.65,141.61,55.32958]
[1641712427086,22.90638546,141.65,141.61,55.32958]
[1641712427888,5.64859326,141.63,141.61,55.32958]
[1641712428090,11.92059326,141.63,141.57,34.6892]
[1641712428690,11.92059326,141.63,141.58,27.66479]
[1641712428891,11.92059326,141.63,141.58,30.35338154]
[1641712429090,2.30556892,141.62,141.58,30.35338154]
[1641712429992,2.30556892,141.62,141.58,27.66479]
[1641712435699,2.30556892,141.62,141.58,33.91779]
[1641712440705,2.30556892,141.62,141.61,27.66479]
[1641712440905,17.25862762,141.66,141.61,27.66479]
[1641712441606,14.9530587,141.65,141.61,27.66479]
[1641712441905,35.01492991,141.65,141.61,27.66479]
[1641712442606,14.9530587,141.65,141.61,27.66479]
[1641712443406,14.9530587,141.64,141.61,27.66479]
[1641712443607,35.01618399,141.64,141.61,27.66479]
[1641712444107,2.30556892,141.63,141.61,27.66479]
[1641712445010,2.30556892,141.66,141.61,27.66479]
[1641712445208,2.30556892,141.66,141.61,36.37179]
[1641712446708,17.25862762,141.66,141.61,36.37179]
[1641712446908,21.25862762,141.66,141.61,27.66479]
[1641712447108,25.71023411,141.65,141.61,27.66479]
[1641712447508,40.66329281,141.65,141.61,27.66479]
[1641712447708,20.06235649,141.64,141.61,27.66479]
[1641712448510,9.64907779,141.62,141.53,34.1044]
[1641712448810,5.65021703,141.59,141.53,34.1044]
[1641712449010,12.42421703,141.59,141.51,27.66479]
[1641712449814,12.42421703,141.59,141.54,2.68649187]
[1641712450711,5.65021703,141.59,141.54,2.68649187]
[1641712451113,2.31641061,141.58,141.54,8.772]
[1641712451912,5.65021703,141.59,141.54,8.772]
[1641712452813,5.65021703,141.59,141.55,27.66479]
[1641712453612,14.9530587,141.62,141.55,33.66579]
[1641712454613,2.31392205,141.63,141.56,2.68395024]
[1641712454817,2.31392205,141.63,141.56,36.98535024]
[1641712455617,2.31392205,141.63,141.57,2.68395024]
[1641712456218,7.9624645,141.63,141.56,34.3014]
[1641712456419,20.60160115,141.63,141.56,34.3014]
[1641712457719,2.31392205,141.62,141.56,34.3014]
[1641712458319,2.31392205,141.62,141.56,38.3014]
[1641712458523,2.31392205,141.65,141.57,2.68413017]
[1641712458820,2.31392205,141.65,141.61,27.66479]
[1641712459019,2.31392205,141.65,141.61,34.91179]
[1641712461124,2.31392205,141.65,141.62,4.0]
[1641712461322,14.9530587,141.68,141.61,38.91179]
[1641712461621,14.9530587,141.68,141.61,44.56108678]
[1641712462120,46.81480957,141.71,141.61,44.56108678]
[1641712462322,39.75390931,141.71,141.63,4.0]
[1641712462523,39.75390931,141.71,141.63,5.764]
[1641712462721,39.75390931,141.71,141.7,27.66479]
[1641712462922,14.98360418,141.71,141.7,33.69379]
[1641712463924,39.75390931,141.74,141.7,33.69379]
[1641712464125,5.64394937,141.75,141.7,6.029]
[1641712464925,20.05231753,141.74,141.7,6.029]
[1641712466524,25.69659821,141.74,141.7,6.029]
[1641712467324,5.64428068,141.74,141.7,6.029]
[1641712468724,5.64428068,141.74,141.68,27.66479]
[1641712470630,70.34812311,141.78,141.68,27.66479]
[1641712471230,74.34812311,141.78,141.68,27.66479]
[1641712471433,9.64361914,141.76,141.68,27.66479]
[1641712472229,4.0,141.75,141.68,27.66479]
[1641712472431,5.64438316,141.74,141.68,27.66479]
[1641712475232,4.0,141.76,141.68,27.66479]
[1641712475532,12.41506546,141.77,141.68,27.66479]
[1641712475833,20.05172846,141.75,141.68,34.72379]
[1641712476533,20.05172846,141.76,141.68,34.72379]
[1641712479036,4.0,141.73,141.68,34.72379]
[1641712479233,4.0,141.73,141.68,27.66479]
[1641712480137,9.64478954,141.73,141.68,27.66479]
[1641712483039,5.64478954,141.73,141.68,27.66479]
[1641712484439,5.64478954,141.73,141.68,34.22079]
[1641712485342,7.05915572,141.74,141.68,34.22079]
[1641712491550,7.05915572,141.74,141.68,6.556]
[1641712491751,11.05915572,141.74,141.66,33.7964]
[1641712491953,4.0,141.72,141.62,35.4454]
[1641712492152,4.0,141.72,141.64,27.66479]
[1641712492352,9.64469968,141.73,141.64,27.66479]
[1641712492553,4.0,141.72,141.64,27.66479]